Cogmind - Beta 15 @@@ ROGUE MODE // 2025.05.19 @ 19:48:32 Player: Cess183 Result: Destroyed by S-10 Pest with Light Assault Rifle Performance ------------- Evolutions (0) 0 Regions Visited (1) 200 Robots Destroyed (27) 135 Value Destroyed (628) 628 Prototype IDs (0) 0 Alien Tech Used (0) 0 Bonus (0) 0 TOTAL SCORE: 963 Bonus ------- None Cogmind --------- Core Integrity 0/250 Matter 300/300 Energy 250/250 System Corruption 0% Temperature Cool (0) Movement Walking (260) Ox2 Location -10/Materials Parts ------- > --- POWER (1) -------- Ion Engine > --- PROPULSION (2) --- Aluminum Leg Aluminum Leg > --- UTILITY (2) ------ High-capacity Storage Unit Visual Processing Unit > --- WEAPON (2) ------- Assault Rifle Light Assault Rifle > --- INVENTORY (20) --- Ion Engine Light Treads Light Treads Light Treads Aluminum Leg Aluminum Leg Aluminum Leg Aluminum Leg Improved Heat Sink High-capacity Matter Pod (200) Transport Network Coupler Weapon Shielding Weapon Shielding Particle Gun Peak State ------------ > --- POWER ------------ Ion Engine > --- PROPULSION ------- Aluminum Leg Aluminum Leg > --- UTILITY ---------- High-capacity Storage Unit Visual Processing Unit > --- WEAPON ----------- Light Assault Rifle Light Assault Rifle > --- INVENTORY -------- Ion Engine Aluminum Leg Improved Heat Sink High-capacity Matter Pod Weapon Shielding Particle Gun Light Assault Rifle [Rating: 9] Favorites ----------- Power Ion Engine Engine Ion Engine Propulsion Aluminum Leg Treads Light Treads Leg Aluminum Leg Utility High-capacity Storage Unit Storage High-capacity Storage Unit Processor Visual Processing Unit Weapon Light Assault Rifle Ballistic Gun Light Assault Rifle Build | -11 -10 ------- Run | Yrd Mat Slots Evolved . | . . Power . | . . Propulsion . | . . Utility . | . . Weapon . | . . Parts Attached 19 | 7 12 Power 3 | 2 1 Engine 3 | 2 1 Core . | . . Reactor . | . . Propulsion 8 | 2 6 Treads 2 | 2 . Leg 6 | . 6 Wheel . | . . Hover . | . . Flight . | . . Utility 4 | 1 3 Device . | . . Storage 3 | 1 2 Processor 1 | . 1 Hackware . | . . Protection . | . . Artifact . | . . Weapon 4 | 2 2 Energy Gun . | . . Energy Cannon . | . . Ballistic Gun 4 | 2 2 Ballistic Cannon . | . . Launcher . | . . Special Weapon . | . . Impact Weapon . | . . Slashing Weapon . | . . Piercing Weapon . | . . Special Melee Weapon . | . . Unidentified Prototypes . | . . Parts Lost 4 | . 4 Power . | . . Propulsion 3 | . 3 Utility . | . . Weapon 1 | . 1 Highest Loss Streak 1 | . 1 To Critical Strikes . | . . Average Backups 6 | 1 7 Power . | . 1 Propulsion 2 | 1 2 Utility 2 | . 2 Weapon 1 | . 1 Tool/Special . | . . Unused Backups 11 | . 11 Power . | . . Propulsion 5 | . 5 Utility 5 | . 5 Weapon 1 | . 1 Tool/Special . | . . Average Slot Usage (%) 96 | . 96 Engine 14 | . 14 Treads 5 | . 5 Leg 22 | . 22 Storage 14 | . 14 Processor 11 | . 11 Ballistic Gun 27 | . 27 Peak Build Rating 9 | 6 9 Average Rating 7 | 5 7 On Entrance 3 | . 6 Naked Turns . | . . Heaviest Build 48 | 12 48 Greatest Support 40 | 40 40 Greatest Overweight (x) 4 | 3 4 Average Overweight (x) 1 | . 1 Largest Inventory Capacity 20 | 8 20 Average Capacity 19 | 7 19 Most Carried 14 | 3 14 Average Carried 6 | 1 7 Final Capacity 20 | 8 20 Final Carried 14 | 3 14 Class Distribution -------------------- 95% | Mutant 4% | Scavenger-Mutant Dominant Class ---------------- Mutant | -10/Materials Resources | -11 -10 ----------- Run | Yrd Mat Matter Collected 870 | 296 574 Remotely . | . . Salvage Created 1049 | 169 880 Parts 60 | 9 51 Haulers Intercepted 2 | . 2 Recyclers Shooed . | . . Parts Field Recycled . | . . Retrieved Matter . | . . Parts Self-Destructed . | . . Prevented . | . . Kills | -11 -10 ------- Run | Yrd Mat Combat Hostiles Destroyed 16 | . 16 Guns 16 | . 16 Classes Destroyed 8 | 3 5 Worker 2 | 2 . Tunneler 2 | 2 . Hauler 2 | . 2 Recycler 3 | 1 2 Operator 1 | . 1 Watcher 1 | . 1 Swarmer 3 | . 3 Grunt 13 | . 13 Best Kill Streak 5 | 5 3 Combat Bots Only 3 | . 3 Max Kills in Single Turn 1 | 1 1 Gunslinging . | . . Exploded . | . . Melee . | . . Uniques/NPCs Destroyed . | . . Combat | -11 -10 -------- Run | Yrd Mat Hostile Shots Fired 143 | . 143 Missed 42 | . 42 Hits 101 | . 101 Projectile 101 | . 101 Critical Strikes 3 | . 3 Damage Taken 1147 | . 1147 Core 252 | . 252 Absorbed by Shields . | . . Core Remaining (%) 100 | 100 . Volleys Fired 143 | 13 130 Largest 2 | 2 2 Hottest 40 | 40 40 Shots Fired 282 | 26 256 Gun 282 | 26 256 Cannon . | . . Launcher . | . . Special . | . . Kinetic 282 | 26 256 Thermal . | . . Explosive . | . . Electromagnetic . | . . Robot Hit Streak 23 | 8 23 Robot Miss Streak 4 | 2 4 Penetration Max . | . . Secondary Targets 4 | . 4 Max Gunslinging Chain 1 | . 1 Shots Hit Robots 198 | 18 180 Core Hits 69 | 7 62 Critical Kills . | . . Critical Parts Destroyed . | . . Critical Strikes . | . . Melee Attacks . | . . Impact . | . . Slashing . | . . Piercing . | . . Sneak Attacks . | . . Combat Hostiles . | . . Follow-up Attacks . | . . Damage Inflicted 1685 | 147 1538 Guns 1677 | 147 1530 Cannons . | . . Explosions . | . . Melee . | . . Ramming 8 | . 8 Kinetic 1677 | 147 1530 Thermal . | . . Explosive . | . . Electromagnetic . | . . Impact . | . . Slashing . | . . Piercing . | . . Highest Corruption . | . . Average Corruption . | . . Corruption Purged . | . . Corruption Blocked . | . . Overload Shots . | . . Overflow Damage . | . . Projectiles . | . . Explosions . | . . Melee . | . . Knockbacks . | . . Impact . | . . Kinetic . | . . Secondary . | . . Self-Inflicted Damage . | . . Shots . | . . Rammed 1 | . 1 Targets Rammed 3 | . 3 Kicked 2 | . 2 Crushed . | . . Highest Temperature 43 | . 43 Average Temperature 12 | . 12 Received Heat Transfer 603 | . 603 Siege Activations . | . . Martial Activations . | . . Shielding Activations . | . . Robots Disrupted . | . . Combat Hostiles . | . . Robots Corrupted . | . . Combat Hostiles . | . . Parts Fried . | . . Impact Corruptions . | . . Robots Melted . | . . Combat Hostiles . | . . Parts Melted . | . . Heat Transferred . | . . Parts Sabotaged . | . . Parts Stolen . | . . Parts Stripped . | . . Power Chain Reactions . | . . Alert | -11 -10 ------- Run | Yrd Mat Maximum Alert Level . | . . Low Security (%) 100 | 100 100 Level 1 . | . . Level 2 . | . . Level 3 . | . . Level 4 . | . . Level 5 . | . . High Security . | . . Max Security . | . . Peak Influence 134 | 10 134 Initial . | . . Average 21 | 1 22 Influence Increases 522 | 25 497 Destroy 0b10 Robot/C 320 | . 320 Destroy 0b10 Robot/NC 55 | 25 30 Destroy Leader 86 | . 86 Successful Hack 11 | . 11 Select Force Hacks 50 | . 50 Influence Decreases 395 | 25 370 Time Decay 365 | 25 340 Lost Part 30 | . 30 Squads Dispatched 6 | . 6 Investigation 4 | . 4 Extermination . | . . Reinforcement 2 | . 2 Assault . | . . Garrison . | . . Intercept . | . . Searches Triggered . | . . Construction Impeded . | . . Haulers Reinforced . | . . Active Scanning Responses . | . . Cargo Convoy Interrupts . | . . Stealth | -11 -10 --------- Run | Yrd Mat Distress Signals 2 | . 2 Communications Jammed . | . . Distress Signals . | . . Times Spotted 45 | . 45 Peak Tracking Total 4 | . 4 Tactical Retreats . | . . Traps | -11 -10 ------- Run | Yrd Mat Traps Triggered 1 | . 1 Indirectly . | . . Trap Hack Attempts . | . . Triggered . | . . Disarmed . | . . Reprogrammed . | . . Reused . | . . Traps Extracted . | . . Installed . | . . Triggered . | . . Machines | -11 -10 ---------- Run | Yrd Mat Machines Disabled . | . . Max in Single Turn . | . . Machines Repaired . | . . Machines Dismantled . | . . Machines Sabotaged 1 | . 1 Overloaded Fab Kills . | . . Hacking | -11 -10 --------- Run | Yrd Mat Machines Accessed 7 | . 7 Terminals 6 | . 6 Fabricators . | . . Repair Stations . | . . Recycling Units 1 | . 1 Scanalyzers . | . . Garrison Access . | . . Total Hacks 20 | . 20 Successful 13 | . 13 Failed 7 | . 7 Catastrophic 1 | . 1 Database Lockouts . | . . Manual 19 | . 19 Terminals 18 | . 18 Fabricators . | . . Repair Stations . | . . Recycling Units 2 | . 2 Scanalyzers . | . . Garrison Access . | . . Terminal Hacks 1 | . 1 Alert Level 1 | . 1 Fabricator Hacks . | . . Repair Station Hacks . | . . Recycling Unit Hacks . | . . Scanalyzer . | . . Garrison Access Hacks . | . . Unauthorized Hacks 12 | . 12 Terminals 11 | . 11 Assimilate 2 | . 2 Botnet 5 | . 5 Operators 1 | . 1 Sabotage 2 | . 2 Search 1 | . 1 Fabricators . | . . Repair Stations . | . . Recycling Units 1 | . 1 Recyclers 1 | . 1 Scanalyzers . | . . Garrison Access . | . . Data Cores Recovered . | . . Used . | . . Hacking Detections 3 | . 3 Full Trace Events . | . . Feedback Events . | . . Feedback Blocked . | . . Robot Schematics Acquired . | . . Robots Built . | . . Authchips . | . . Time . | . . Total Robot Build Rating . | . . Part Schematics Acquired . | . . Parts Built . | . . Authchips . | . . Time . | . . Total Part Build Rating . | . . Parts Repaired . | . . Time . | . . Parts Recycled . | . . Recycled Matter . | . . Retrieved Matter . | . . Retrieved Components . | . . Parts Scanalyzed . | . . Part Schematics Acquired . | . . Parts Damaged . | . . Bothacking | -11 -10 ------------ Run | Yrd Mat Used RIF Installer . | . . Robots Hacked . | . . Non-combat . | . . Combat . | . . Robot Hacks Applied . | . . Relay Couplers Released . | . . Fabnet Peak Effective % . | . . Robots Rewired . | . . Allies Hacked . | . . Hacks Repelled . | . . Allies | -11 -10 -------- Run | Yrd Mat Total Allies . | . . Largest Group . | . . Highest-Rated Group . | . . Highest-Rated Ally . | . . Total Orders . | . . Ally Attacks . | . . Total Damage . | . . Kills . | . . Allies Corrupted . | . . Allies Melted . | . . Intel | -11 -10 ------- Run | Yrd Mat Active Infowar (turns) 2636 | . 2636 Optics 2636 | . 2636 Robot Analysis Total . | . . Derelict Logs Recovered . | . . Drone Launches . | . . Drone Recoveries . | . . Exploration | -11 -10 ------------- Run | Yrd Mat Turns Passed 3404 | 182 3222 Spaces Moved 1214 | 85 1129 Core 5 | 5 . Treads 338 | 80 258 Legs 871 | . 871 Wheels . | . . Hover . | . . Flight . | . . Fastest Speed 50 | 50 160 Average Speed 244 | 159 251 Slowest Speed 400 | 200 400 Overloaded Moves . | . . Propulsion Burnouts . | . . Robots Hopped . | . . Potential Cave-ins . | . . Cave-ins Triggered . | . . Exploration Rate (%) 53 | 7 99 Regions Visited 1 Branch Regions . Pre-discovered Areas . | . . Known Exits Taken . | . . Unknown Exits Taken 1 | 1 . Scrap Searched . | . . Spaces Dug . | . . Terrain Destroyed . | . . Melee . | . . Projectile . | . . AOE . | . . Terrain Rammed . | . . Walls Destroyed . | . . Machines Disabled . | . . Actions | -11 -10 --------- Run | Yrd Mat Total 1415 | 107 1308 Wait 12 | . 12 Move 1213 | 84 1129 Hop . | . . Pick Up 16 | 3 13 Fast Attach 9 | 6 3 Attach 5 | . 5 Detach 3 | . 3 Swap 6 | 1 5 Drop 5 | . 5 Fire 143 | 13 130 Melee . | . . Ram . | . . Kick 2 | . 2 Crush 1 | . 1 Escape Stasis . | . . Rewire . | . . Trap . | . . Miscellaneous . | . . Route ------- -11/Scrapyard -10/Materials (discovered 6 exits: [*Mat x3] / [*Min x2] / [*Sub]) History --------- Turn | Location | Event 29 | -11/Scrapyard | Discovered new exit (range 16) 183 | -11/Scrapyard | Entered Materials 312 | -10/Materials | Build established: Mutant 486 | -10/Materials | Discovered new exit (range 8) 555 | -10/Materials | Discovered new exit (range 14) 1203 | -10/Materials | Discovered new exit (range 11) 1824 | -10/Materials | Discovered new exit (range 17) 2088 | -10/Materials | Discovered new exit (range 11) 2604 | -10/Materials | Core integrity fell below 50% 2696 | -10/Materials | Discovered new exit (range 14) 2919 | -10/Materials | Core integrity fell below 20% 3405 | -10/Materials | Destroyed by S-10 Pest with Light Assault Rifle Last Messages --------------- 03265_ Switching to secondary target: G-34 Mercenary. 03268_ G-34 Mercenary destroyed. 03269_ K-01 Serf collects debris. 03275_ K-01 Serf cleans the Terminal. 03279_ K-01 Serf collects debris. 03282_ Acquired 36 matter. 03283_ K-01 Serf collects debris. 03284_ Acquired 18 matter. 03287_ K-01 Serf collects debris. 03290_ Connecting with Terminal... >>Force(Search) SEARCH_COMPLETE[9] DISCOVERED[7xTerminal] DISCOVERED[1xRepair Station] DISCOVERED[1xRecycling Unit] COORDINATES_EXTRACTED 03290_ ALERT: Suspicious activity at Terminal M007. Dispatching Investigation squad. 03291_ K-01 Serf collects debris. 03398_ W-16 Scout sends out distress signal. Map ----- +----------------------------------------------------+ | ?????????????????????????????????????????????????? | | ?????????????????????????????????????????????????? | | ????????????????#####????????????????????????????? | | ????????????????# #????????????#####???????????? | | ????????????????# < #???????????##"""##??????????? | | ????????????????# #??????????##"|||"##?????????? | | ????????######### #??????????#"" ""#?????????? | | ???????# # #??????????# #?????????? | | ???????# """ # #??????????# < #?????????? | | ???????# """ # #??????????# #?????????? | | ###????# """ # #??????????# #?????????? | | #????# # #???????????# #??????????? | | #????# """ # #??########### ########????? | | " #????# """ + #??# """T""" # # #????? | | " #????# """ # #??# + + """ #????? | | " #????# # #??# # # """ #????? | | #????########## ##?# # # """ #????? | | ################ #?########### # #????? | | ^ ^ #??????###### # #????? | | ^ ^ T #??????# ########????? | | ^ ^^ #??????# ####????????? | | ^ ^""" ### #??????# #????????? | | ^ ^""""" #?#########????# ####### #????????? | | "" """"" ###### #####ssw#?????# #????????? | | "Y """"" # # s #?????# #????????? | | "" """ # "" # @ #??####+###??????? | | # Y" # #??# #??????? | | = + "" # ##### #??#! """ #####??? | | #### ### ####### #??# "T" + #??? | | #??# ! #?# ?# + #### " " # #??? | | ###+##### #?? ?# # + + #??? | | # ## % ######### ?# # #### = # #??? | | # ## % ## # ## ################ #??? | | # ## % ##! # ## #????# #??? | | # ## ## " # #<###?????# #??? | | # ## ## """ # ##????????# #??? | | # ## ## "" # #?????????# ###########??? | | # ## ## """ # #????????## ##???????????? | | # ## ## "" # ########## #########???? | | # + ## """ # ! #???? | | + ## ## """ # %T [ #???? | | ###### ## """ # r %[ #???? | | #????# ##= " # ########## *##### #???? | | #????# ## # #???????####+#####?# ##### | | #??###+##+#### # #???????# #?# # | | #??# % # #########+# #???????# """"" #?# + | | #??# # % o #???????# """"" #?# # | | #??# # % #???????# """"" #?# # "" | | #??# + #???????# #?# # " " | | #??# ###### ###+#######??# """"" #?# # """ | +----------------------------------------------------+ Best States ------------- Heat Dissipation 25 Energy Generation 10 Energy Capacity 250 Matter Stores 300 Matter Capacity 300 Sight Range 18 Terrain Scan Density 10 Evasion (%) 40 Recoil Reduction 2 Item Schematics ----------------- None Robot Schematics ------------------ None Fabricated ------------ Nothing Repaired ---------- Nothing Alien Tech Used ----------------- None Achievements -------------- None Challenges ------------ None Game ------ Seed SlugNuclearInverter Manual? 0 Play Time 00:24:37 Cumulative 28.5 hours Start 2025.05.19 @ 19:24:15 End 2025.05.19 @ 19:48:32 Sessions 1 Manual Loads 0 Difficulty Rogue Special Mode None Game No. 39 Rogue 39 Adventurer 0 Explorer 0 Win Type - Total 0 Types 0/0/0/0/0/0/0/0/0/0 Lore% 31 Gallery% 22 Achievement% 24 Wizard Run 0 Options --------- Layout 0 ASCII 0 Keyboard 1 Movement Vi Keybinds 0 Fullscreen 1 Font 18/SmallcapsGlow Map View 76x50 Zoom Use 0% Tactical HUD 1 Map Filters NONE Filters NONE Steam 1 RUN: 30cbf31d-f63c-44f3-9b6d-9e0e94096bc8